fUSD/lending_fUSD_20260608
["ID","MTS","AMOUNT","RATE_DAILY","PERIOD"]
[424413632,1780857040000,-500.0,0.00014999,2]
[424413625,1780857040000,-500.0,0.00014999,2]
[424413604,1780857040000,-500.0,0.00014999,2]
[424413616,1780857040000,-500.0,0.00014999,2]
[424413646,1780857040000,-500.0,0.00014999,2]
[424413590,1780857040000,-500.0,0.00014999,2]
[424413589,1780857040000,-500.0,0.00014999,2]
[424413591,1780857040000,-500.0,0.00014999,2]
[424413593,1780857040000,-500.0,0.00014999,2]
[424413595,1780857040000,-500.0,0.00014999,2]
[424413594,1780857040000,-500.0,0.00014999,2]
[424413592,1780857040000,-500.0,0.00014999,2]
[424413596,1780857040000,-500.0,0.00014999,2]
[424413599,1780857040000,-500.0,0.00014999,2]
[424413597,1780857040000,-500.0,0.00014999,2]
[424413598,1780857040000,-500.0,0.00014999,2]
[424413619,1780857040000,-500.0,0.00014999,2]
[424413602,1780857040000,-500.0,0.00014999,2]
[424413601,1780857040000,-500.0,0.00014999,2]
[424413605,1780857040000,-500.0,0.00014999,2]
[424413609,1780857040000,-500.0,0.00014999,2]
[424413606,1780857040000,-500.0,0.00014999,2]
[424413607,1780857040000,-500.0,0.00014999,2]
[424413610,1780857040000,-500.0,0.00014999,2]
[424413611,1780857040000,-500.0,0.00014999,2]
[424413608,1780857040000,-500.0,0.00014999,2]
[424413612,1780857040000,-500.0,0.00014999,2]
[424413614,1780857040000,-500.0,0.00014999,2]
[424413615,1780857040000,-500.0,0.00014999,2]
[424413613,1780857040000,-500.0,0.00014999,2]
[424413600,1780857040000,-500.0,0.00014999,2]
[424413648,1780857040000,-500.0,0.00014999,2]
[424413603,1780857040000,-500.0,0.00014999,2]
[424413645,1780857040000,-500.0,0.00014999,2]
[424413678,1780857040000,-500.0,0.00014999,2]
[424413681,1780857040000,-666.0,0.00014999,2]
[424413683,1780857040000,-666.0,0.00014999,2]
[424413684,1780857040000,-300.0,0.00014999,2]
[424413685,1780857040000,-300.0,0.00014999,2]
[424413686,1780857040000,-1500.0,0.00015,2]
[424413688,1780857040000,-4727903.62988729,0.00015,2]
[424413690,1780857040000,-1861110.58184883,0.00015,2]
[424413689,1780857040000,-384.79,0.00015,2]
[424413687,1780857040000,-250.0,0.00015,2]
[424413694,1780857040000,-2000.0,0.00015,2]
[424413692,1780857040000,-1121.94657481,0.00015,2]
[424413682,1780857040000,-300.0,0.00014999,2]
[424413693,1780857040000,-5349.98102113,0.00015,2]
[424413697,1780857040000,-584.09,0.00015,2]
[424413695,1780857040000,-336.33,0.00015,2]
[424413696,1780857040000,-973.47,0.00015,2]
[424413698,1780857040000,-1200.0,0.00015,2]
[424413700,1780857040000,-300.0,0.00015,2]
[424413699,1780857040000,-500.0,0.00015,2]
[424413703,1780857040000,-150.66997503,0.00015,2]
[424413702,1780857040000,-151.1563446,0.00015,2]
[424413704,1780857040000,-2000.0,0.00015,2]
[424413701,1780857040000,-151.0,0.00015,2]
[424413705,1780857040000,-479.0,0.00015,2]
[424413706,1780857040000,-1032.92,0.00015,2]
[424413691,1780857040000,-351.79652105,0.00015,2]
[424413679,1780857040000,-500.0,0.00014999,2]
[424413680,1780857040000,-300.0,0.00014999,2]
[424413661,1780857040000,-500.0,0.00014999,2]
[424413650,1780857040000,-500.0,0.00014999,2]
[424413652,1780857040000,-500.0,0.00014999,2]
[424413651,1780857040000,-500.0,0.00014999,2]
[424413653,1780857040000,-500.0,0.00014999,2]
[424413654,1780857040000,-500.0,0.00014999,2]
[424413655,1780857040000,-500.0,0.00014999,2]
[424413657,1780857040000,-500.0,0.00014999,2]
[424413656,1780857040000,-500.0,0.00014999,2]
[424413658,1780857040000,-500.0,0.00014999,2]
[424413659,1780857040000,-500.0,0.00014999,2]
[424413660,1780857040000,-500.0,0.00014999,2]
[424413662,1780857040000,-500.0,0.00014999,2]
[424413677,1780857040000,-500.0,0.00014999,2]
[424413647,1780857040000,-500.0,0.00014999,2]
[424413665,1780857040000,-500.0,0.00014999,2]
[424413676,1780857040000,-500.0,0.00014999,2]
[424413675,1780857040000,-500.0,0.00014999,2]
[424413674,1780857040000,-500.0,0.00014999,2]
[424413672,1780857040000,-500.0,0.00014999,2]
[424413663,1780857040000,-500.0,0.00014999,2]
[424413671,1780857040000,-500.0,0.00014999,2]
[424413673,1780857040000,-500.0,0.00014999,2]
[424413669,1780857040000,-500.0,0.00014999,2]
[424413664,1780857040000,-500.0,0.00014999,2]
[424413667,1780857040000,-500.0,0.00014999,2]
[424413668,1780857040000,-500.0,0.00014999,2]
[424413666,1780857040000,-500.0,0.00014999,2]
[424413670,1780857040000,-500.0,0.00014999,2]
[424413709,1780857041000,-608.11845993,0.00015,2]
[424413708,1780857041000,-7076070.44369942,0.00015,2]
[424413707,1780857041000,-619.75,0.00015,2]
[424413719,1780857046000,-2590.53658344,0.00015,2]
[424413727,1780857479000,2853.92,0.00030137,120]
[424413728,1780857489000,1880.85,0.00030137,120]
[424413729,1780857507000,2686.93,0.0003013,120]
[424413730,1780857565000,524.4647426,0.00030137,120]
[424413741,1780858128000,588.9,0.00030082,120]
[424413742,1780858155000,-161.58388088,0.00010687,2]
[424413745,1780858231000,-150.0,0.00010699,2]
[424413746,1780858231000,-2230.96,0.00010703,2]
[424413749,1780858231000,-444.32370083,0.00010772,2]
[424413747,1780858231000,-250.0,0.00010712,2]
[424413748,1780858231000,-154.6,0.00010736,2]
[424413750,1780858231000,-4170.97629917,0.00010772,2]
[424413752,1780858231000,-1505.13,0.00010787,2]
[424413755,1780858231000,-461.31368873,0.00010939,2]
[424413753,1780858231000,-801.73368873,0.00010915,2]
[424413754,1780858231000,-198.26631127,0.00010915,2]
[424413751,1780858231000,-250.0,0.00010779,2]
[424413756,1780858231000,-822.21968653,0.00010939,2]
[424413758,1780858231000,-150.0,0.00010959,2]
[424413757,1780858231000,-296.68662474,0.00010939,2]
[424413759,1780858232000,-806.11,0.00011024,2]
[424413761,1780858232000,-150.0,0.00011208,2]
[424413769,1780858232000,-250.0,0.00011756,2]
[424413765,1780858232000,-166.66,0.00011611,2]
[424413766,1780858232000,-400.0,0.000117,4]
[424413760,1780858232000,-166.66,0.00011151,2]
[424413767,1780858232000,-190.05985192,0.00011709,2]
[424413764,1780858232000,-806.11,0.00011575,2]
[424413762,1780858232000,-420.55953636,0.00011293,2]
[424413768,1780858232000,-6325.69454653,0.00011749,2]
[424413770,1780858232000,-1180.49859245,0.00011799,2]
[424413773,1780858232000,-9262.90087722,0.00011799,2]
[424413775,1780858232000,-390.37,0.00011799,2]
[424413763,1780858232000,-806.11,0.00011299,2]
[424413834,1780858238000,-500.0,0.00011882,2]
[424413836,1780858238000,-500.0,0.00011882,2]
[424413837,1780858238000,-500.0,0.00011882,2]
[424413838,1780858238000,-500.0,0.00011882,2]
[424413833,1780858238000,-500.0,0.00011882,2]
[424413841,1780858238000,-500.0,0.00011882,2]
[424413835,1780858238000,-500.0,0.00011882,2]
[424413839,1780858238000,-500.0,0.00011882,2]
[424413842,1780858238000,-500.0,0.00011882,2]
[424413843,1780858238000,-500.0,0.00011882,2]
[424413840,1780858238000,-500.0,0.00011882,2]
[424413832,1780858238000,-500.0,0.00011882,2]
[424413831,1780858238000,-500.0,0.00011882,2]
[424413829,1780858238000,-500.0,0.00011882,2]
[424413826,1780858238000,-806.11,0.0001185,2]
[424413828,1780858238000,-443.94586987,0.00011854,2]
[424413844,1780858238000,-500.0,0.00011882,2]
[424413825,1780858238000,-150.0,0.00011844,2]
[424413827,1780858238000,-930.92336413,0.00011854,2]
[424413824,1780858238000,-900.0,0.000118,4]
[424413823,1780858238000,-35406.9008904,0.00011799,2]
[424413822,1780858238000,-6161.67581818,0.00011799,2]
[424413816,1780858238000,-538.715813,0.00011799,2]
[424413821,1780858238000,-632.42829031,0.00011799,2]
[424413818,1780858238000,-304.0,0.00011799,2]
[424413830,1780858238000,-500.0,0.00011882,2]
[424413845,1780858238000,-500.0,0.00011882,2]
[424413867,1780858238000,-500.0,0.00011882,2]
[424413849,1780858238000,-500.0,0.00011882,2]
[424413873,1780858238000,-500.0,0.00011882,2]
[424413870,1780858238000,-500.0,0.00011882,2]
[424413872,1780858238000,-160.44878148,0.00011882,2]
[424413871,1780858238000,-500.0,0.00011882,2]
[424413874,1780858238000,-500.0,0.00011882,2]
[424413868,1780858238000,-500.0,0.00011882,2]
[424413869,1780858238000,-500.0,0.00011882,2]
[424413846,1780858238000,-500.0,0.00011882,2]
[424413866,1780858238000,-500.0,0.00011882,2]
[424413864,1780858238000,-500.0,0.00011882,2]
[424413863,1780858238000,-500.0,0.00011882,2]
[424413861,1780858238000,-500.0,0.00011882,2]
[424413862,1780858238000,-500.0,0.00011882,2]
[424413865,1780858238000,-488.15893993,0.00011882,2]
[424413859,1780858238000,-500.0,0.00011882,2]
[424413858,1780858238000,-500.0,0.00011882,2]
[424413848,1780858238000,-500.0,0.00011882,2]
[424413847,1780858238000,-500.0,0.00011882,2]
[424413850,1780858238000,-500.0,0.00011882,2]
[424413852,1780858238000,-500.0,0.00011882,2]
[424413855,1780858238000,-500.0,0.00011882,2]
[424413853,1780858238000,-500.0,0.00011882,2]
[424413854,1780858238000,-500.0,0.00011882,2]
[424413856,1780858238000,-500.0,0.00011882,2]
[424413857,1780858238000,-500.0,0.00011882,2]
[424413860,1780858238000,-500.0,0.00011882,2]
[424413851,1780858238000,-500.0,0.00011882,2]
[424413907,1780858239000,-500.0,0.00012008,6]
[424413917,1780858239000,-500.0,0.00012192,2]
[424413914,1780858239000,-806.11,0.00012126,2]
[424413910,1780858239000,-4183.78,0.00012055,2]
[424413909,1780858239000,-600.5079791,0.00012032,2]
[424413904,1780858239000,-500.0,0.00012008,3]
[424413905,1780858239000,-500.0,0.00012008,4]
[424413913,1780858239000,-500.0,0.00012109,3]
[424413906,1780858239000,-500.0,0.00012008,5]
[424413911,1780858239000,-166.66,0.00012071,2]
[424413908,1780858239000,-500.0,0.00012008,7]
[424413916,1780858239000,-500.0,0.00012182,2]
[424413930,1780858239000,-53877.49028151,0.00012833,2]
[424413918,1780858239000,-215.83393831,0.00012262,2]
[424413919,1780858239000,-1580.22,0.00012307,2]
[424413923,1780858239000,-500.0,0.00012456,2]
[424413922,1780858239000,-153.78606725,0.00012455,2]
[424413920,1780858239000,-588.9,0.00012329,2]
[424413921,1780858239000,-209.83972274,0.00012329,2]
[424413924,1780858239000,-53877.49028151,0.00012488,2]
[424413926,1780858239000,-166.66,0.00012531,2]
[424413925,1780858239000,-83033.79196499,0.00012531,2]
[424413927,1780858239000,-186.18115721,0.00012575,2]
[424413934,1780858239000,-166.66,0.00012991,2]
[424413912,1780858239000,-500.0,0.00012109,2]
[424413915,1780858239000,-53877.49028151,0.00012144,2]
[424413902,1780858239000,-220.35,0.00012,2]
[424413890,1780858239000,-500.0,0.00011908,2]
[424413901,1780858239000,-332.92,0.00011988,2]
[424413878,1780858239000,-500.0,0.00011882,2]
[424413875,1780858239000,-500.27682562,0.00011882,2]
[424413876,1780858239000,-499.99999999,0.00011882,2]
[424413877,1780858239000,-500.0,0.00011882,2]
[424413879,1780858239000,-500.0,0.00011882,2]
[424413880,1780858239000,-500.0,0.00011882,2]
[424413882,1780858239000,-114440.42415747,0.00011883,2]
[424413883,1780858239000,-1400.0,0.000119,4]
[424413881,1780858239000,-500.0,0.00011882,2]
[424413889,1780858239000,-500.0,0.00011908,2]
[424413884,1780858239000,-151.0,0.00011906,2]
[424413885,1780858239000,-500.0,0.00011908,2]
[424413888,1780858239000,-150.0,0.00011908,2]
[424413886,1780858239000,-1123.65786455,0.00011908,3]
[424413887,1780858239000,-1123.65786455,0.00011908,3]
[424413891,1780858239000,-500.0,0.00011908,2]
[424413892,1780858239000,-500.0,0.00011908,2]
[424413893,1780858239000,-500.0,0.00011908,2]
[424413895,1780858239000,-150.0,0.00011909,2]
[424413897,1780858239000,-302.46,0.00011909,2]
[424413896,1780858239000,-213.0,0.00011909,2]
[424413894,1780858239000,-500.0,0.00011908,2]
[424413898,1780858239000,-357.5390969,0.00011909,2]
[424413899,1780858239000,-160.0,0.00011979,2]
[424413900,1780858239000,-341.72,0.00011988,2]
[424413903,1780858239000,-500.0,0.00012008,2]
[424413929,1780858239000,-500.0,0.0001273,2]
[424413933,1780858239000,-255.0,0.00012922,2]
[424413935,1780858239000,-209.83972274,0.00012997,2]
[424413964,1780858239000,-150.0,0.00013488,2]
[424413960,1780858239000,-150.0,0.00013488,2]
[424413962,1780858239000,-150.0,0.00013488,2]
[424413968,1780858239000,-150.0,0.00013488,2]
[424413966,1780858239000,-150.44031966,0.00013488,2]
[424413961,1780858239000,-150.0,0.00013488,2]
[424413967,1780858239000,-169.15934622,0.00013488,2]
[424413982,1780858239000,-1580.22,0.00013674,2]
[424413972,1780858239000,-53877.49028151,0.00013522,2]
[424413975,1780858239000,-83033.79196499,0.00013546,2]
[424413973,1780858239000,-500.0,0.00013541,2]
[424413974,1780858239000,-186.18115721,0.00013545,2]
[424413978,1780858239000,-181.835873,0.00013607,2]
[424413979,1780858239000,-259.546555,0.00013607,2]
[424413977,1780858239000,-278.156515,0.00013607,2]
[424413980,1780858239000,-201.345207,0.00013607,2]
[424413976,1780858239000,-500.0,0.00013552,2]
[424413981,1780858239000,-209.83972274,0.00013664,2]
[424413984,1780858239000,-382.821165,0.00013675,2]
[424413985,1780858239000,-372.48078518,0.00013698,2]
[424413983,1780858239000,-234.397804,0.00013675,2]
[424413988,1780858239000,-4018.14360044,0.00013698,2]
[424413986,1780858239000,-371.68639575,0.00013698,2]
[424413987,1780858239000,-383.61623155,0.00013698,2]
[424413932,1780858239000,-83033.79196499,0.00012869,2]
[424413963,1780858239000,-224.38985235,0.00013488,2]
[424413969,1780858239000,-203.77673036,0.00013488,2]
[424413971,1780858239000,-150.0,0.00013488,2]
[424413970,1780858239000,-150.0,0.00013488,2]
[424413928,1780858239000,-5449.0,0.00012712,2]
[424413965,1780858239000,-151.41923818,0.00013488,2]
[424413931,1780858239000,-500.0,0.00012869,2]
[424413936,1780858239000,-500.0,0.00013004,2]
[424413938,1780858239000,-693.21,0.00013142,2]
[424413940,1780858239000,-53877.49028151,0.00013177,2]
[424413939,1780858239000,-2000.0,0.00013142,2]
[424413943,1780858239000,-433.72964009,0.00013207,2]
[424413944,1780858239000,-500.0,0.00013207,2]
[424413942,1780858239000,-500.0,0.00013207,2]
[424413937,1780858239000,-500.0,0.00013077,8]
[424413941,1780858239000,-349.9553126,0.00013207,2]
[424413945,1780858239000,-500.0,0.00013207,2]
[424413947,1780858239000,-354.88657139,0.00013207,2]
[424413949,1780858239000,-337.52582274,0.00013207,2]
[424413959,1780858239000,-260.207534,0.00013425,2]
[424413946,1780858239000,-500.0,0.00013207,2]
[424413958,1780858239000,-215.782023,0.00013425,2]
[424413956,1780858239000,-443.94586986,0.00013377,2]
[424413952,1780858239000,-594.53005815,0.00013207,2]
[424413950,1780858239000,-500.0,0.00013207,2]
[424413957,1780858239000,-154.6,0.00013421,2]
[424413953,1780858239000,-83033.79196499,0.00013208,2]
[424413955,1780858239000,-500.0,0.00013356,2]
[424413951,1780858239000,-500.0,0.00013207,2]
[424413948,1780858239000,-500.0,0.00013207,2]
[424413954,1780858239000,-500.0,0.00013278,2]
[424414023,1780858240000,-500.43121743,0.00013698,2]
[424414024,1780858240000,-500.0,0.00013698,2]
[424414025,1780858240000,-500.0,0.00013698,2]
[424414021,1780858240000,-500.0,0.00013698,2]
[424414026,1780858240000,-500.0,0.00013698,2]
[424414022,1780858240000,-500.0,0.00013698,2]
[424414020,1780858240000,-500.0,0.00013698,2]
[424414029,1780858240000,-500.0,0.00013698,2]
[424414018,1780858240000,-500.0,0.00013698,2]
[424414031,1780858240000,-500.0,0.00013698,2]
[424414019,1780858240000,-500.0,0.00013698,2]
[424414032,1780858240000,-500.0,0.00013698,2]
[424414042,1780858240000,-500.0,0.00013698,2]
[424414030,1780858240000,-500.0,0.00013698,2]
[424414041,1780858240000,-396.87484801,0.00013698,2]
[424414035,1780858240000,-500.0,0.00013698,2]
[424414034,1780858240000,-500.0,0.00013698,2]
[424414039,1780858240000,-500.0,0.00013698,2]
[424414038,1780858240000,-500.0,0.00013698,2]
[424414037,1780858240000,-500.0,0.00013698,2]
[424414036,1780858240000,-500.0,0.00013698,2]
[424414040,1780858240000,-500.0,0.00013698,2]
[424414043,1780858240000,-500.0,0.00013698,2]
[424414053,1780858240000,-500.0,0.00013698,2]
[424414027,1780858240000,-500.0,0.00013698,2]
[424414033,1780858240000,-500.0,0.00013698,2]
[424414028,1780858240000,-500.0,0.00013698,2]
[424413990,1780858240000,-500.0,0.00013698,2]
[424414013,1780858240000,-500.0,0.00013698,2]
[424414045,1780858240000,-500.0,0.00013698,2]
[424413991,1780858240000,-504.74101189,0.00013698,2]
[424413993,1780858240000,-500.0,0.00013698,2]
[424413992,1780858240000,-500.0,0.00013698,2]
[424413989,1780858240000,-501.26941348,0.00013698,2]
[424413994,1780858240000,-500.0,0.00013698,2]
[424414000,1780858240000,-500.0,0.00013698,2]
[424414001,1780858240000,-500.0,0.00013698,2]
[424414002,1780858240000,-500.0,0.00013698,2]
[424414004,1780858240000,-500.0,0.00013698,2]
[424414005,1780858240000,-500.0,0.00013698,2]
[424413996,1780858240000,-500.0,0.00013698,2]
[424414014,1780858240000,-500.0,0.00013698,2]
[424413998,1780858240000,-500.0,0.00013698,2]
[424413995,1780858240000,-500.0,0.00013698,2]
[424413997,1780858240000,-500.0,0.00013698,2]
[424414006,1780858240000,-500.0,0.00013698,2]
[424414008,1780858240000,-500.0,0.00013698,2]
[424414007,1780858240000,-500.0,0.00013698,2]
[424414011,1780858240000,-500.0,0.00013698,2]
[424414010,1780858240000,-500.0,0.00013698,2]
[424414016,1780858240000,-500.0,0.00013698,2]
[424414017,1780858240000,-500.0,0.00013698,2]
[424414009,1780858240000,-500.0,0.00013698,2]
[424414012,1780858240000,-500.0,0.00013698,2]
[424414015,1780858240000,-410.70452855,0.00013698,2]
[424413999,1780858240000,-500.0,0.00013698,2]
[424414044,1780858240000,-500.0,0.00013698,2]
[424414003,1780858240000,-577.88976382,0.00013698,2]
[424414048,1780858240000,-500.0,0.00013698,2]
[424414079,1780858240000,-500.0,0.00013698,2]
[424414081,1780858240000,-500.0,0.00013698,2]
[424414083,1780858240000,-500.0,0.00013698,2]
[424414082,1780858240000,-500.0,0.00013698,2]
[424414080,1780858240000,-500.0,0.00013698,2]
[424414085,1780858240000,-500.0,0.00013698,2]
[424414084,1780858240000,-228.84,0.00013698,2]
[424414089,1780858240000,-500.0,0.00013698,2]
[424414088,1780858240000,-500.0,0.00013698,2]
[424414086,1780858240000,-500.0,0.00013698,2]
[424414087,1780858240000,-500.0,0.00013698,2]
[424414101,1780858240000,-500.0,0.00013698,2]
[424414073,1780858240000,-500.0,0.00013698,2]
[424414099,1780858240000,-500.0,0.00013698,2]
[424414100,1780858240000,-309.2506608,0.00013698,2]
[424414091,1780858240000,-500.0,0.00013698,2]
[424414092,1780858240000,-500.0,0.00013698,2]
[424414095,1780858240000,-500.0,0.00013698,2]
[424414094,1780858240000,-500.0,0.00013698,2]
[424414093,1780858240000,-500.0,0.00013698,2]
[424414098,1780858240000,-322.28290153,0.00013698,2]
[424414097,1780858240000,-500.0,0.00013698,2]
[424414102,1780858240000,-500.0,0.00013698,2]
[424414105,1780858240000,-500.0,0.00013698,2]
[424414104,1780858240000,-494.93120924,0.00013698,2]
[424414103,1780858240000,-500.0,0.00013698,2]
[424414090,1780858240000,-500.0,0.00013698,2]
[424414077,1780858240000,-500.0,0.00013698,2]
[424414096,1780858240000,-500.0,0.00013698,2]
[424414070,1780858240000,-500.0,0.00013698,2]
[424414074,1780858240000,-500.0,0.00013698,2]
[424414050,1780858240000,-500.0,0.00013698,2]
[424414046,1780858240000,-500.0,0.00013698,2]
[424414049,1780858240000,-500.0,0.00013698,2]
[424414051,1780858240000,-500.0,0.00013698,2]
[424414047,1780858240000,-646.73966443,0.00013698,2]
[424414056,1780858240000,-958.72,0.00013698,2]
[424414055,1780858240000,-500.0,0.00013698,2]
[424414054,1780858240000,-500.0,0.00013698,2]
[424414065,1780858240000,-958.72,0.00013698,2]
[424414058,1780858240000,-500.0,0.00013698,2]
[424414061,1780858240000,-958.72,0.00013698,2]
[424414062,1780858240000,-500.0,0.00013698,2]
[424414052,1780858240000,-500.0,0.00013698,2]
[424414063,1780858240000,-958.72,0.00013698,2]
[424414059,1780858240000,-958.72,0.00013698,2]
[424414076,1780858240000,-500.0,0.00013698,2]
[424414067,1780858240000,-958.72,0.00013698,2]
[424414078,1780858240000,-500.0,0.00013698,2]
[424414075,1780858240000,-500.0,0.00013698,2]
[424414072,1780858240000,-500.0,0.00013698,2]
[424414068,1780858240000,-500.0,0.00013698,2]
[424414060,1780858240000,-500.0,0.00013698,2]
[424414069,1780858240000,-500.0,0.00013698,2]
[424414057,1780858240000,-958.72,0.00013698,2]
[424414071,1780858240000,-525.11763864,0.00013698,2]
[424414064,1780858240000,-500.0,0.00013698,2]
[424414066,1780858240000,-500.0,0.00013698,2]
[424414145,1780858241000,-500.0,0.00013698,2]
[424414143,1780858241000,-500.0,0.00013698,2]
[424414141,1780858241000,-500.0,0.00013698,2]
[424414140,1780858241000,-500.0,0.00013698,2]
[424414146,1780858241000,-500.0,0.00013698,2]
[424414149,1780858241000,-500.0,0.00013698,2]
[424414159,1780858241000,-500.0,0.00013698,2]
[424414150,1780858241000,-500.0,0.00013698,2]
[424414148,1780858241000,-500.0,0.00013698,2]
[424414139,1780858241000,-500.0,0.00013698,2]
[424414153,1780858241000,-500.0,0.00013698,2]
[424414152,1780858241000,-451.14,0.00013698,2]
[424414154,1780858241000,-500.0,0.00013698,2]
[424414157,1780858241000,-500.0,0.00013698,2]
[424414133,1780858241000,-500.0,0.00013698,2]
[424414158,1780858241000,-217.89304475,0.00013698,2]
[424414151,1780858241000,-500.0,0.00013698,2]
[424414156,1780858241000,-500.0,0.00013698,2]
[424414161,1780858241000,-500.0,0.00013698,2]
[424414171,1780858241000,-2500.0,0.00013699,2]
[424414162,1780858241000,-500.0,0.00013698,2]
[424414155,1780858241000,-500.0,0.00013698,2]
[424414137,1780858241000,-500.0,0.00013698,2]
[424414124,1780858241000,-500.0,0.00013698,2]
[424414147,1780858241000,-500.0,0.00013698,2]
[424414170,1780858241000,-200.0,0.00013699,2]
[424414110,1780858241000,-500.0,0.00013698,2]
[424414109,1780858241000,-500.0,0.00013698,2]
[424414107,1780858241000,-500.0,0.00013698,2]
[424414106,1780858241000,-500.0,0.00013698,2]
[424414113,1780858241000,-500.0,0.00013698,2]
[424414112,1780858241000,-500.0,0.00013698,2]
[424414108,1780858241000,-500.0,0.00013698,2]
[424414111,1780858241000,-500.0,0.00013698,2]
[424414115,1780858241000,-500.0,0.00013698,2]
[424414127,1780858241000,-500.0,0.00013698,2]
[424414114,1780858241000,-500.0,0.00013698,2]
[424414131,1780858241000,-457.12873569,0.00013698,2]
[424414116,1780858241000,-500.0,0.00013698,2]
[424414120,1780858241000,-500.0,0.00013698,2]
[424414118,1780858241000,-500.0,0.00013698,2]
[424414117,1780858241000,-500.0,0.00013698,2]
[424414122,1780858241000,-500.0,0.00013698,2]
[424414119,1780858241000,-500.0,0.00013698,2]
[424414135,1780858241000,-500.0,0.00013698,2]
[424414142,1780858241000,-500.0,0.00013698,2]
[424414144,1780858241000,-500.0,0.00013698,2]
[424414129,1780858241000,-500.0,0.00013698,2]
[424414163,1780858241000,-500.0,0.00013698,2]
[424414160,1780858241000,-237.69358717,0.00013698,2]
[424414191,1780858241000,-500.0,0.00013699,2]
[424414189,1780858241000,-500.0,0.00013699,2]
[424414193,1780858241000,-500.0,0.00013699,2]
[424414194,1780858241000,-500.0,0.00013699,2]
[424414192,1780858241000,-500.0,0.00013699,2]
[424414196,1780858241000,-500.0,0.00013699,2]
[424414195,1780858241000,-500.0,0.00013699,2]
[424414200,1780858241000,-500.0,0.00013699,2]
[424414203,1780858241000,-500.0,0.00013699,2]
[424414202,1780858241000,-500.0,0.00013699,2]
[424414188,1780858241000,-500.0,0.00013699,2]
[424414204,1780858241000,-500.0,0.00013699,2]
[424414206,1780858241000,-500.0,0.00013699,2]
[424414205,1780858241000,-500.0,0.00013699,2]
[424414211,1780858241000,-500.0,0.00013699,2]
[424414208,1780858241000,-500.0,0.00013699,2]
[424414209,1780858241000,-500.0,0.00013699,2]
[424414210,1780858241000,-500.0,0.00013699,2]
[424414213,1780858241000,-500.0,0.00013699,2]
[424414212,1780858241000,-500.0,0.00013699,2]
[424414214,1780858241000,-500.0,0.00013699,2]
[424414169,1780858241000,-1096.31,0.00013699,2]
[424414207,1780858241000,-500.0,0.00013699,2]
[424414190,1780858241000,-500.0,0.00013699,2]
[424414201,1780858241000,-500.0,0.00013699,2]
[424414198,1780858241000,-500.0,0.00013699,2]
[424414164,1780858241000,-500.0,0.00013698,2]
[424414199,1780858241000,-500.0,0.00013699,2]
[424414165,1780858241000,-500.0,0.00013698,2]
[424414167,1780858241000,-500.0,0.00013698,2]
[424414166,1780858241000,-500.0,0.00013698,2]
[424414168,1780858241000,-166.66,0.00013699,2]
[424414172,1780858241000,-500.0,0.00013699,2]